[Event "23rd ETCC Women 2021"]
[Site "Catez"]
[Date "2021.11.14"]
[Round "2.23"]
[White "Machlik, Edit"]
[Black "Schneider, Jana"]
[Result "1/2-1/2"]
[ECO "E36"]
[WhiteElo "2087"]
[BlackElo "2269"]
[Annotator "ChessBase"]
[PlyCount "181"]
[EventDate "2021.11.08"]
[EventType "team-tourn"]
[EventCountry "SLO"]
[SourceTitle "playchess.com"]
[Source "ChessBase"]
[SourceQuality "1"]
[WhiteTeam "Norway"]
[BlackTeam "Germany"]
[WhiteTeamCountry "NOR"]
[BlackTeamCountry "GER"]
[TimeControl "40/5400+30:1800+30"]

1. d4 {[%emt 0:00:04]} Nf6 {[%emt 0:00:11]} 2. c4 {[%emt 0:00:07]} e6 {[%emt 0:
00:05]} 3. Nc3 {[%emt 0:00:08]} Bb4 {[%emt 0:00:07]} 4. Qc2 {[%emt 0:01:06]} d5
{[%emt 0:00:18]} 5. a3 {[%emt 0:02:27]} Bxc3+ {[%emt 0:00:10]} 6. Qxc3 {
[%emt 0:00:07]} b6 {[%emt 0:00:12]} 7. Nf3 {[%emt 0:05:19]} dxc4 {[%emt 0:00:
37]} 8. Qxc4 {[%emt 0:01:21]} Ba6 {[%emt 0:00:20]} 9. Qa4+ {[%emt 0:00:14]} Qd7
{[%emt 0:00:42]} 10. Qc2 {[%emt 0:12:51]} O-O {[%emt 0:11:12]} 11. Bg5 {
[%emt 0:03:04]} c5 {[%emt 0:05:11]} 12. dxc5 {[%emt 0:11:47]} bxc5 {[%emt 0:10:
46]} 13. Rd1 {[%emt 0:14:38]} Qc7 {[%emt 0:06:30]} 14. Bxf6 {[%emt 0:03:08]}
gxf6 {[%emt 0:00:07]} 15. e3 {[%emt 0:03:56]} Bxf1 {[%emt 0:02:03]} 16. Rxf1 {
[%emt 0:00:08]} Nd7 {[%emt 0:02:47]} 17. Ke2 {[%emt 0:05:39]} Rab8 {[%emt 0:05:
29]} 18. Rd2 {[%emt 0:03:34]} Ne5 {[%emt 0:02:30]} 19. Qc3 {[%emt 0:10:54]} c4
{[%emt 0:11:45]} 20. Nxe5 {[%emt 0:04:05]} fxe5 {[%emt 0:00:55]} 21. Rc1 {
[%emt 0:02:37]} Rfc8 {[%emt 0:02:08]} 22. Rdc2 {[%emt 0:03:11]} Qd6 {[%emt 0:
05:19]} 23. Rd2 {[%emt 0:04:26]} Qa6 {[%emt 0:07:02]} 24. Ke1 {[%emt 0:01:13]}
Qb5 {[%emt 0:00:08]} 25. Qc2 {[%emt 0:02:38]} Qc6 {[%emt 0:02:18]} 26. Kf1 {
[%emt 0:00:18]} Qa6 {[%emt 0:02:10]} 27. Kg1 {[%emt 0:00:42]} c3 {[%emt 0:01:
37]} 28. bxc3 {[%emt 0:00:16]} Qxa3 {[%emt 0:00:07]} 29. c4 {[%emt 0:01:53]}
Qb4 {[%emt 0:01:02]} 30. Rdd1 {[%emt 0:00:26]} Qc5 {[%emt 0:04:34]} 31. Qe4 {
[%emt 0:00:15]} Rb4 {[%emt 0:01:12]} 32. Qg4+ {[%emt 0:00:44]} Kf8 {[%emt 0:01:
11]} 33. Qg5 {[%emt 0:01:07]} Rxc4 {[%emt 0:01:14]} 34. Rxc4 {[%emt 0:00:43]}
Qxc4 {[%emt 0:00:04]} 35. Qxe5 {[%emt 0:01:20]} Qc2 {[%emt 0:05:24]} 36. Qd6+ {
[%emt 0:01:20]} Ke8 {[%emt 0:02:13]} 37. Qd7+ {[%emt 0:00:05]} Kf8 {[%emt 0:00:
04]} 38. Qd6+ {[%emt 0:00:10]} Ke8 {[%emt 0:00:04]} 39. h3 {[%emt 0:01:12]} a5
{[%emt 0:02:18]} 40. Qd7+ {[%emt 0:00:39]} Kf8 {[%emt 0:00:04]} 41. Ra1 {
[%emt 0:04:59]} Ra8 {[%emt 0:05:32]} 42. Ra4 {[%emt 0:07:04]} Qc5 {[%emt 0:07:
45]} 43. Rf4 {[%emt 0:07:28]} Qe7 {[%emt 0:02:10]} 44. Qc6 {[%emt 0:00:27]} Rb8
{[%emt 0:03:46]} 45. Qc3 {[%emt 0:02:30]} e5 {[%emt 0:01:39]} 46. Ra4 {[%emt 0:
07:58]} Rb1+ {[%emt 0:03:55]} 47. Kh2 {[%emt 0:00:01]} Rf1 {[%emt 0:00:27]} 48.
Rxa5 {[%emt 0:01:55]} Rxf2 {[%emt 0:00:44]} 49. Rxe5 {[%emt 0:01:58]} Rc2 {
[%emt 0:04:55]} 50. Qd4 {[%emt 0:00:45]} Qc7 {[%emt 0:00:30]} 51. Qf4 {[%emt 0:
00:27]} Rc4 {[%emt 0:00:44]} 52. Qh6+ {[%emt 0:00:33]} Kg8 {[%emt 0:00:04]} 53.
Qg5+ {[%emt 0:00:08]} Kf8 {[%emt 0:00:04]} 54. Qf6 {[%emt 0:00:52]} Kg8 {
[%emt 0:00:08]} 55. Qe7 {[%emt 0:00:26]} Qxe7 {[%emt 0:00:56]} 56. Rxe7 {
[%emt 0:00:00]} Kf8 {[%emt 0:01:12]} 57. Ra7 {[%emt 0:00:22]} Rc3 {[%emt 0:00:
22]} 58. Ra8+ {[%emt 0:00:03]} Ke7 {[%emt 0:02:09]} 59. Rh8 {[%emt 0:00:08]}
Rxe3 {[%emt 0:00:12]} 60. Rxh7 {[%emt 0:00:03]} Kf6 {[%emt 0:00:09]} 61. Rh5 {
[%emt 0:00:16]} Kg6 {[%emt 0:00:45]} 62. Ra5 {[%emt 0:00:39]} f5 {[%emt 0:01:
02]} 63. Kg1 {[%emt 0:01:08]} Re2 {[%emt 0:00:16]} 64. Kh2 {[%emt 0:00:21]} Re3
{[%emt 0:00:18]} 65. h4 {[%emt 0:01:10]} Rb3 {[%emt 0:02:31]} 66. g3 {[%emt 0:
00:41]} Rb2+ {[%emt 0:00:59]} 67. Kh3 {[%emt 0:00:11]} Rb3 {[%emt 0:00:03]} 68.
Ra6+ {[%emt 0:00:23]} Kg7 {[%emt 0:00:23]} 69. Kg2 {[%emt 0:00:27]} Rc3 {
[%emt 0:00:18]} 70. Kf2 {[%emt 0:00:44]} Rb3 {[%emt 0:00:29]} 71. Re6 {[%emt 0:
00:30]} Kf7 {[%emt 0:00:47]} 72. Re3 {[%emt 0:00:13]} Rb1 {[%emt 0:01:16]} 73.
Ra3 {[%emt 0:00:24]} Rb4 {[%emt 0:00:23]} 74. Ke3 {[%emt 0:00:14]} Rc4 {
[%emt 0:00:23]} 75. Rd3 {[%emt 0:00:10]} Re4+ {[%emt 0:00:28]} 76. Kf3 {
[%emt 0:00:13]} Ra4 {[%emt 0:00:17]} 77. Rd6 {[%emt 0:00:26]} Kg7 {[%emt 0:00:
34]} 78. Kg2 {[%emt 0:00:46]} Ra3 {[%emt 0:00:21]} 79. h5 {[%emt 0:00:34]} Rb3
{[%emt 0:00:34]} 80. Rg6+ {[%emt 0:00:40]} Kf7 {[%emt 0:00:10]} 81. Ra6 {
[%emt 0:00:47]} Kg7 {[%emt 0:00:08]} 82. Kf2 {[%emt 0:00:47]} Rc3 {[%emt 0:00:
16]} 83. Re6 {[%emt 0:00:13]} Ra3 {[%emt 0:00:38]} 84. Re3 {[%emt 0:00:38]}
Ra2+ {[%emt 0:00:13]} 85. Kf3 {[%emt 0:00:15]} Kh6 {[%emt 0:00:43]} 86. Kf4 {
[%emt 0:00:33]} Rf2+ {[%emt 0:00:29]} 87. Rf3 {[%emt 0:00:19]} Rxf3+ {[%emt 0:
00:07]} 88. Kxf3 {[%emt 0:00:03]} Kxh5 {[%emt 0:00:08]} 89. Kf4 {[%emt 0:00:04]
} Kg6 {[%emt 0:00:05]} 90. g4 {[%emt 0:00:15]} fxg4 {[%emt 0:00:04]} 91. Kxg4 {
[%emt 0:00:03]} 1/2-1/2

[Event "23rd ETCC Women 2021"]
[Site "Catez"]
[Date "2021.11.14"]
[Round "2.24"]
[White "Lubbe, Melanie"]
[Black "Rodsmoen, Maud"]
[Result "1-0"]
[ECO "B48"]
[WhiteElo "2311"]
[BlackElo "1953"]
[Annotator "ChessBase"]
[PlyCount "99"]
[EventDate "2021.11.08"]
[EventType "team-tourn"]
[EventCountry "SLO"]
[SourceTitle "playchess.com"]
[Source "ChessBase"]
[SourceQuality "1"]
[WhiteTeam "Germany"]
[BlackTeam "Norway"]
[WhiteTeamCountry "GER"]
[BlackTeamCountry "NOR"]
[TimeControl "40/5400+30:1800+30"]

1. e4 {[%emt 0:00:03]} c5 {[%emt 0:00:12]} 2. Nf3 {[%emt 0:00:05]} e6 {[%emt 0:
00:04]} 3. d4 {[%emt 0:00:04]} cxd4 {[%emt 0:00:03]} 4. Nxd4 {[%emt 0:00:04]}
Nc6 {[%emt 0:00:04]} 5. Nc3 {[%emt 0:00:07]} Qc7 {[%emt 0:00:04]} 6. Be3 {
[%emt 0:00:23]} a6 {[%emt 0:00:08]} 7. Bd3 {[%emt 0:00:43]} Nf6 {[%emt 0:03:08]
} 8. O-O {[%emt 0:00:12]} Nxd4 {[%emt 0:02:39]} 9. Bxd4 {[%emt 0:00:06]} e5 {
[%emt 0:00:37]} 10. Be3 {[%emt 0:02:06]} b5 {[%emt 0:03:54]} 11. Bg5 {[%emt 0:
07:47]} Bb7 {[%emt 0:16:12]} 12. Bxf6 {[%emt 0:03:01]} gxf6 {[%emt 0:00:15]}
13. Qf3 {[%emt 0:01:42]} Qb6 {[%emt 0:08:39]} 14. a4 {[%emt 0:12:03]} b4 {
[%emt 0:04:02]} 15. a5 {[%emt 0:14:57]} Qe6 {[%emt 0:07:19]} 16. Na4 {[%emt 0:
00:40]} Rd8 {[%emt 0:11:48]} 17. Nb6 {[%emt 0:05:10]} Bc5 {[%emt 0:03:46]} 18.
Bc4 {[%emt 0:07:16]} Qe7 {[%emt 0:02:05]} 19. Rfd1 {[%emt 0:04:22]} d6 {
[%emt 0:11:11]} 20. Rd3 {[%emt 0:10:16]} Rg8 {[%emt 0:03:39]} 21. Qf5 {[%emt 0:
08:01]} Rg6 {[%emt 0:02:43]} 22. h4 {[%emt 0:04:08]} h6 {[%emt 0:02:26]} 23.
Rad1 {[%emt 0:02:55]} Qc7 {[%emt 0:05:20]} 24. Bd5 {[%emt 0:07:09]} Bc8 {
[%emt 0:02:18]} 25. Nxc8 {[%emt 0:01:26]} Qxc8 {[%emt 0:00:21]} 26. Qxc8 {
[%emt 0:01:22]} Rxc8 {[%emt 0:00:02]} 27. Bb7 {[%emt 0:01:14]} Rc7 {[%emt 0:01:
33]} 28. Bxa6 {[%emt 0:00:03]} Bd4 {[%emt 0:01:14]} 29. Bb5+ {[%emt 0:03:30]}
Ke7 {[%emt 0:00:06]} 30. c3 {[%emt 0:01:04]} bxc3 {[%emt 0:00:24]} 31. bxc3 {
[%emt 0:00:02]} Bxc3 {[%emt 0:01:57]} 32. Rxd6 {[%emt 0:01:45]} Bxa5 {[%emt 0:
01:14]} 33. Rd8 {[%emt 0:00:41]} f5 {[%emt 0:01:13]} 34. exf5 {[%emt 0:00:04]}
Rb6 {[%emt 0:00:32]} 35. R8d5 {[%emt 0:00:57]} Bc3 {[%emt 0:01:44]} 36. g4 {
[%emt 0:01:43]} Bd4 {[%emt 0:01:36]} 37. Rd2 {[%emt 0:00:17]} Kf6 {[%emt 0:00:
29]} 38. Kg2 {[%emt 0:00:33]} Rc3 {[%emt 0:02:51]} 39. Bd3 {[%emt 0:00:21]}
Rbb3 {[%emt 0:01:09]} 40. Be4 {[%emt 0:00:36]} Rc1 {[%emt 0:00:47]} 41. Rd6+ {
[%emt 0:06:53]} Ke7 {[%emt 0:03:02]} 42. Rxh6 {[%emt 0:00:19]} Rb4 {[%emt 0:03:
05]} 43. Ra6 {[%emt 0:06:09]} Bb6 {[%emt 0:03:48]} 44. Bf3 {[%emt 0:10:20]}
Rcb1 {[%emt 0:13:27]} 45. g5 {[%emt 0:02:44]} Rxh4 {[%emt 0:02:09]} 46. Kg3 {
[%emt 0:07:07]} Rd4 {[%emt 0:02:40]} 47. Rxd4 {[%emt 0:00:29]} exd4 {[%emt 0:
01:18]} 48. Be4 {[%emt 0:00:43]} Rg1+ {[%emt 0:04:06]} 49. Kf3 {[%emt 0:00:11]}
Rb1 {[%emt 0:00:12]} 50. Bxb1 {[%emt 0:00:05]} 1-0

[Event "23rd ETCC Women 2021"]
[Site "Catez"]
[Date "2021.11.13"]
[Round "2.25"]
[White "Danielian, Elina"]
[Black "Goossens, Hanne"]
[Result "1-0"]
[ECO "A48"]
[WhiteElo "2450"]
[BlackElo "2126"]
[Annotator "ChessBase"]
[PlyCount "87"]
[EventDate "2021.11.08"]
[EventType "team-tourn"]
[EventCountry "SLO"]
[SourceTitle "playchess.com"]
[Source "ChessBase"]
[SourceQuality "1"]
[WhiteTeam "Armenia"]
[BlackTeam "Belgium"]
[WhiteTeamCountry "ARM"]
[BlackTeamCountry "BEL"]
[TimeControl "40/5400+30:1800+30"]

1. d4 {[%emt 0:00:04]} Nf6 {[%emt 0:00:11]} 2. Nf3 {[%emt 0:00:05]} g6 {
[%emt 0:00:30]} 3. Bg5 {[%emt 0:00:12]} Bg7 {[%emt 0:01:31]} 4. Nbd2 {[%emt 0:
00:06]} c5 {[%emt 0:05:54]} 5. c3 {[%emt 0:04:58]} d6 {[%emt 0:02:24]} 6. Bxf6
{[%emt 0:09:35]} exf6 {[%emt 0:06:42]} 7. e3 {[%emt 0:03:36]} O-O {[%emt 0:01:
42]} 8. g3 {[%emt 0:00:35]} Nc6 {[%emt 0:02:58]} 9. Bg2 {[%emt 0:00:32]} Qc7 {
[%emt 0:04:07]} 10. O-O {[%emt 0:00:19]} b6 {[%emt 0:01:27]} 11. Rc1 {[%emt 0:
01:54]} Ba6 {[%emt 0:02:06]} 12. Re1 {[%emt 0:00:09]} Rac8 {[%emt 0:01:02]} 13.
b4 {[%emt 0:05:11]} Qe7 {[%emt 0:04:10]} 14. Qb3 {[%emt 0:02:06]} Bb7 {[%emt 0:
01:28]} 15. a4 {[%emt 0:06:23]} Rfd8 {[%emt 0:03:49]} 16. Rb1 {[%emt 0:04:35]}
Rc7 {[%emt 0:05:31]} 17. Qa2 {[%emt 0:07:43]} Bc8 {[%emt 0:11:05]} 18. a5 {
[%emt 0:05:12]} Bd7 {[%emt 0:09:39]} 19. bxc5 {[%emt 0:03:51]} bxc5 {[%emt 0:
00:31]} 20. a6 {[%emt 0:02:25]} Rb8 {[%emt 0:04:04]} 21. d5 {[%emt 0:02:26]}
Rxb1 {[%emt 0:02:10]} 22. Rxb1 {[%emt 0:00:05]} Ne5 {[%emt 0:00:58]} 23. Rb8+ {
[%emt 0:03:57]} Bc8 {[%emt 0:02:15]} 24. Nxe5 {[%emt 0:02:18]} fxe5 {[%emt 0:
02:57]} 25. Bh3 {[%emt 0:01:45]} f5 {[%emt 0:01:03]} 26. e4 {[%emt 0:00:32]}
Bf8 {[%emt 0:02:21]} 27. Qa5 {[%emt 0:05:51]} Qf7 {[%emt 0:06:37]} 28. Nc4 {
[%emt 0:03:28]} Kg7 {[%emt 0:08:46]} 29. exf5 {[%emt 0:11:54]} Bxf5 {[%emt 0:
02:18]} 30. Bxf5 {[%emt 0:00:03]} gxf5 {[%emt 0:00:05]} 31. Qxc7 {[%emt 0:01:
17]} Qxc7 {[%emt 0:00:20]} 32. Rb7 {[%emt 0:00:01]} Qf7 {[%emt 0:01:41]} 33.
Rxf7+ {[%emt 0:00:04]} Kxf7 {[%emt 0:00:03]} 34. Na5 {[%emt 0:00:12]} Ke7 {
[%emt 0:00:21]} 35. Nc6+ {[%emt 0:00:03]} Kd7 {[%emt 0:00:10]} 36. Nxa7 {
[%emt 0:00:02]} Kc7 {[%emt 0:04:13]} 37. Nb5+ {[%emt 0:09:58]} Kb6 {[%emt 0:00:
04]} 38. a7 {[%emt 0:00:05]} Kb7 {[%emt 0:00:06]} 39. c4 {[%emt 0:00:22]} f4 {
[%emt 0:01:03]} 40. gxf4 {[%emt 0:00:31]} exf4 {[%emt 0:00:10]} 41. Kg2 {
[%emt 0:30:04]} Bg7 {[%emt 0:04:41]} 42. Kf3 {[%emt 0:00:00]} Be5 {[%emt 0:00:
16]} 43. Ke4 {[%emt 0:00:00]} f3 {[%emt 0:00:44]} 44. h3 {[%emt 0:00:00]} 1-0

[Event "23rd ETCC Women 2021"]
[Site "Catez"]
[Date "2021.11.13"]
[Round "2.27"]
[White "Gaboyan, Susanna"]
[Black "Vanduyfhuys, Daria"]
[Result "1-0"]
[ECO "C00"]
[WhiteElo "2253"]
[BlackElo "1933"]
[Annotator "NA"]
[PlyCount "91"]
[EventDate "2021.11.08"]
[EventType "team-tourn"]
[EventCountry "SLO"]
[SourceTitle "playchess.com"]
[Source "ChessBase"]
[SourceQuality "1"]
[WhiteTeam "Armenia"]
[BlackTeam "Belgium"]
[WhiteTeamCountry "ARM"]
[BlackTeamCountry "BEL"]
[TimeControl "40/5400+30:1800+30"]

1. Nf3 {[%emt 0:00:08]} d5 {[%emt 0:00:07]} 2. g3 {[%emt 0:00:06]} Nf6 {
[%emt 0:00:06]} 3. Bg2 {[%emt 0:00:05]} e6 {[%emt 0:00:07]} 4. O-O {[%emt 0:00:
09]} Be7 {[%emt 0:00:13]} 5. d3 {[%emt 0:00:24]} O-O {[%emt 0:00:13]} 6. Nbd2 {
[%emt 0:00:06]} c5 {[%emt 0:00:50]} 7. e4 {[%emt 0:00:09]} Nc6 {[%emt 0:01:09]}
8. Qe2 {[%emt 0:03:59]} b5 {[%emt 0:03:57]} 9. e5 {[%emt 0:00:23]} Nd7 {
[%emt 0:00:07]} 10. Re1 {[%emt 0:00:07]} Bb7 {[%emt 0:02:07]} 11. h4 {[%emt 0:
00:24]} h6 {[%emt 0:05:05]} 12. Nf1 {[%emt 0:00:14]} a5 {[%emt 0:01:49]} 13.
N1h2 {[%emt 0:02:18]} Re8 {[%emt 0:04:59]} 14. h5 {[%emt 0:02:44]} a4 {[%emt 0:
02:24]} 15. a3 {[%emt 0:01:07]} Qc7 {[%emt 0:08:53]} 16. Ng4 {[%emt 0:03:44]}
Bf8 {[%emt 0:00:56]} 17. Bf4 {[%emt 0:02:45]} Qa5 {[%emt 0:04:53]} 18. Qe3 {
[%emt 0:09:18]} Ne7 {[%emt 0:09:21]} 19. Nh4 {[%emt 0:21:52]} Nf5 {[%emt 0:10:
05]} 20. Nxf5 {[%emt 0:08:33]} exf5 {[%emt 0:00:06]} 21. Nh2 {[%emt 0:00:22]}
d4 {[%emt 0:02:26]} 22. Qe2 {[%emt 0:00:42]} Bxg2 {[%emt 0:00:25]} 23. Kxg2 {
[%emt 0:00:02]} Ra6 {[%emt 0:01:30]} 24. g4 {[%emt 0:14:39]} fxg4 {[%emt 0:05:
05]} 25. Nxg4 {[%emt 0:00:00]} Rae6 {[%emt 0:01:56]} 26. Bg3 {[%emt 0:00:12]}
f6 {[%emt 0:14:33]} 27. f4 {[%emt 0:01:06]} fxe5 {[%emt 0:00:09]} 28. fxe5 {
[%emt 0:00:09]} Bd6 {[%emt 0:01:28]} 29. Qf3 {[%emt 0:08:44]} Nxe5 {[%emt 0:07:
12]} 30. Bxe5 {[%emt 0:05:24]} Bxe5 {[%emt 0:00:13]} 31. Qd5 {[%emt 0:00:28]}
Qd2+ {[%emt 0:00:26]} 32. Kh3 {[%emt 0:00:31]} Kh7 {[%emt 0:02:14]} 33. Rxe5 {
[%emt 0:02:32]} Rxe5 {[%emt 0:00:09]} 34. Nxe5 {[%emt 0:00:03]} Qg5 {[%emt 0:
00:48]} 35. Qe4+ {[%emt 0:06:03]} Kg8 {[%emt 0:00:05]} 36. Re1 {[%emt 0:00:06]}
Qxh5+ {[%emt 0:00:07]} 37. Kg3 {[%emt 0:04:51]} Qg5+ {[%emt 0:00:05]} 38. Kf3 {
[%emt 0:00:30]} Qh5+ {[%emt 0:00:51]} 39. Kf2 {[%emt 0:00:21]} Rf8+ {[%emt 0:
06:45]} 40. Kg2 {[%emt 0:00:59]} Qg5+ {[%emt 0:00:11]} 41. Qg4 {[%emt 0:30:08]}
Qd2+ {[%emt 0:30:59]} 42. Re2 {[%emt 0:01:08]} Qc1 {[%emt 0:02:30]} 43. Nf3 {
[%emt 0:00:54]} Rf4 {[%emt 0:02:47]} 44. Qg6 {[%emt 0:02:46]} Rf8 {[%emt 0:00:
00]} 45. Re7 {[%emt 0:00:00]} Qxc2+ {[%emt 0:00:00]} 46. Kh1 {[%emt 0:00:00]}
1-0

[Event "23rd ETCC Women 2021"]
[Site "Catez"]
[Date "2021.11.13"]
[Round "2.28"]
[White "Barbier, Astrid"]
[Black "Ghukasyan, Siranush"]
[Result "0-1"]
[ECO "C77"]
[WhiteElo "1915"]
[BlackElo "2168"]
[Annotator "NA"]
[PlyCount "65"]
[EventDate "2021.11.08"]
[EventType "team-tourn"]
[EventCountry "SLO"]
[SourceTitle "playchess.com"]
[Source "ChessBase"]
[SourceQuality "1"]
[WhiteTeam "Belgium"]
[BlackTeam "Armenia"]
[WhiteTeamCountry "BEL"]
[BlackTeamCountry "ARM"]
[TimeControl "40/5400+30:1800+30"]

1. e4 {[%emt 0:00:02]} e5 {[%emt 0:00:05]} 2. Nf3 {[%emt 0:00:06]} Nc6 {
[%emt 0:00:05]} 3. Bb5 {[%emt 0:00:06]} a6 {[%emt 0:00:04]} 4. Ba4 {[%emt 0:00:
05]} Nf6 {[%emt 0:00:03]} 5. d3 {[%emt 0:00:07]} d6 {[%emt 0:00:05]} 6. c3 {
[%emt 0:00:15]} g6 {[%emt 0:00:05]} 7. O-O {[%emt 0:01:51]} Bg7 {[%emt 0:00:10]
} 8. Re1 {[%emt 0:01:32]} O-O {[%emt 0:00:09]} 9. Nbd2 {[%emt 0:05:37]} b5 {
[%emt 0:06:39]} 10. Bb3 {[%emt 0:02:20]} Na5 {[%emt 0:03:00]} 11. Bc2 {[%emt 0:
00:25]} c5 {[%emt 0:00:38]} 12. a4 {[%emt 0:02:38]} Bb7 {[%emt 0:01:02]} 13.
Nf1 {[%emt 0:05:17]} Qc7 {[%emt 0:01:28]} 14. Be3 {[%emt 0:06:46]} Nc6 {
[%emt 0:11:47]} 15. Ng3 {[%emt 0:03:53]} b4 {[%emt 0:12:42]} 16. h3 {[%emt 0:
09:18]} h6 {[%emt 0:02:30]} 17. Qd2 {[%emt 0:04:16]} Kh7 {[%emt 0:00:21]} 18.
Rac1 {[%emt 0:02:15]} Rad8 {[%emt 0:07:45]} 19. c4 {[%emt 0:05:21]} Ne7 {
[%emt 0:02:36]} 20. Nh2 {[%emt 0:08:25]} Nfg8 {[%emt 0:01:21]} 21. Bd1 {
[%emt 0:02:09]} f5 {[%emt 0:12:32]} 22. f4 {[%emt 0:05:17]} exf4 {[%emt 0:05:
11]} 23. Bxf4 {[%emt 0:00:18]} g5 {[%emt 0:04:10]} 24. exf5 {[%emt 0:06:37]}
gxf4 {[%emt 0:00:42]} 25. Nh5 {[%emt 0:03:33]} Bd4+ {[%emt 0:01:41]} 26. Kh1 {
[%emt 0:00:17]} Be3 {[%emt 0:05:13]} 27. Rxe3 {[%emt 0:01:22]} fxe3 {[%emt 0:
00:08]} 28. Qxe3 {[%emt 0:00:31]} Nxf5 {[%emt 0:00:17]} 29. Qd2 {[%emt 0:00:42]
} Qe7 {[%emt 0:00:45]} 30. Bg4 {[%emt 0:01:21]} Qg5 {[%emt 0:01:15]} 31. Qxg5 {
[%emt 0:04:00]} hxg5 {[%emt 0:00:04]} 32. Nf3 {[%emt 0:00:07]} Bxf3 {[%emt 0:
00:45]} 33. Bxf3 {[%emt 0:00:22]} 0-1

[Event "23rd ETCC Women 2021"]
[Site "Catez"]
[Date "2021.11.13"]
[Round "2.29"]
[White "Stojkovska, Monika"]
[Black "Brunello, Marina"]
[Result "1/2-1/2"]
[ECO "D10"]
[WhiteElo "2066"]
[BlackElo "2359"]
[Annotator "NA"]
[PlyCount "93"]
[EventDate "2021.11.08"]
[EventType "team-tourn"]
[EventCountry "SLO"]
[SourceTitle "playchess.com"]
[Source "ChessBase"]
[SourceQuality "1"]
[WhiteTeam "Macedonia"]
[BlackTeam "Italy"]
[WhiteTeamCountry "MKD"]
[BlackTeamCountry "ITA"]
[TimeControl "40/5400+30:1800+30"]

1. d4 {[%emt 0:00:09]} d5 {[%emt 0:00:12]} 2. c4 {[%emt 0:00:13]} c6 {[%emt 0:
00:04]} 3. cxd5 {[%emt 0:00:16]} cxd5 {[%emt 0:00:07]} 4. Bf4 {[%emt 0:00:27]}
Nf6 {[%emt 0:00:28]} 5. Nc3 {[%emt 0:00:15]} a6 {[%emt 0:00:00]} 6. e3 {
[%emt 0:00:26]} Nc6 {[%emt 0:01:08]} 7. Bd3 {[%emt 0:00:54]} Bg4 {[%emt 0:00:
52]} 8. Nge2 {[%emt 0:00:38]} e6 {[%emt 0:00:29]} 9. O-O {[%emt 0:00:18]} Be7 {
[%emt 0:01:22]} 10. f3 {[%emt 0:01:10]} Bh5 {[%emt 0:00:05]} 11. Rc1 {[%emt 0:
00:13]} O-O {[%emt 0:01:29]} 12. Na4 {[%emt 0:00:53]} Nd7 {[%emt 0:03:11]} 13.
Qb3 {[%emt 0:01:28]} Ra7 {[%emt 0:02:16]} 14. Bg3 {[%emt 0:01:21]} Bg6 {
[%emt 0:03:45]} 15. Nf4 {[%emt 0:00:51]} Na5 {[%emt 0:07:37]} 16. Qc2 {[%emt 0:
03:39]} Nc4 {[%emt 0:01:04]} 17. Qe2 {[%emt 0:16:11]} b5 {[%emt 0:10:41]} 18.
Nxg6 {[%emt 0:02:27]} hxg6 {[%emt 0:00:14]} 19. Nc3 {[%emt 0:01:14]} Ndb6 {
[%emt 0:03:48]} 20. b3 {[%emt 0:03:15]} Nd6 {[%emt 0:00:12]} 21. Qb2 {[%emt 0:
07:19]} Qd7 {[%emt 0:05:24]} 22. Ne2 {[%emt 0:09:55]} Raa8 {[%emt 0:08:32]} 23.
Rc2 {[%emt 0:05:10]} Rfc8 {[%emt 0:00:09]} 24. Rfc1 {[%emt 0:00:45]} Rxc2 {
[%emt 0:10:34]} 25. Rxc2 {[%emt 0:02:42]} b4 {[%emt 0:00:35]} 26. Qc1 {[%emt 0:
05:09]} Nb5 {[%emt 0:00:10]} 27. Bxb5 {[%emt 0:19:48]} axb5 {[%emt 0:01:09]}
28. Nf4 {[%emt 0:02:09]} Rc8 {[%emt 0:04:29]} 29. Nd3 {[%emt 0:02:35]} Rxc2 {
[%emt 0:09:41]} 30. Qxc2 {[%emt 0:00:11]} Nc8 {[%emt 0:00:21]} 31. Be1 {
[%emt 0:03:59]} Nd6 {[%emt 0:00:31]} 32. Bxb4 {[%emt 0:01:04]} Nf5 {[%emt 0:00:
12]} 33. Ne5 {[%emt 0:06:41]} Qb7 {[%emt 0:01:46]} 34. Bd2 {[%emt 0:00:45]} Bd6
{[%emt 0:02:52]} 35. Qc6 {[%emt 0:00:43]} Qb8 {[%emt 0:00:03]} 36. Ng4 {
[%emt 0:01:35]} b4 {[%emt 0:01:27]} 37. Qc2 {[%emt 0:01:29]} g5 {[%emt 0:00:39]
} 38. Qc1 {[%emt 0:00:36]} Nh4 {[%emt 0:01:02]} 39. Be1 {[%emt 0:00:31]} f5 {
[%emt 0:00:50]} 40. Bxh4 {[%emt 0:00:18]} gxh4 {[%emt 0:05:21]} 41. Nf2 {
[%emt 0:07:00]} Bxh2+ {[%emt 0:01:29]} 42. Kh1 {[%emt 0:04:34]} Bd6 {[%emt 0:
07:46]} 43. Qc6 {[%emt 0:01:13]} Qc7 {[%emt 0:04:39]} 44. Qe8+ {[%emt 0:08:25]}
Kh7 {[%emt 0:00:11]} 45. Qh5+ {[%emt 0:00:04]} Kg8 {[%emt 0:00:03]} 46. Qe8+ {
[%emt 0:00:04]} Kh7 {[%emt 0:00:02]} 47. Qh5+ {[%emt 0:00:04]} 1/2-1/2

[Event "23rd ETCC Women 2021"]
[Site "Catez"]
[Date "2021.11.13"]
[Round "2.30"]
[White "Sedina, Elena"]
[Black "Bejatovic, Bojana"]
[Result "1-0"]
[ECO "C42"]
[WhiteElo "2263"]
[BlackElo "2031"]
[Annotator "NA"]
[PlyCount "43"]
[EventDate "2021.11.08"]
[EventType "team-tourn"]
[EventCountry "SLO"]
[SourceTitle "playchess.com"]
[Source "ChessBase"]
[SourceQuality "1"]
[WhiteTeam "Italy"]
[BlackTeam "Macedonia"]
[WhiteTeamCountry "ITA"]
[BlackTeamCountry "MKD"]
[TimeControl "40/5400+30:1800+30"]

1. e4 {[%emt 0:00:05]} e5 {[%emt 0:00:05]} 2. Nf3 {[%emt 0:00:38]} Nf6 {
[%emt 0:00:06]} 3. Nxe5 {[%emt 0:02:22]} d6 {[%emt 0:00:07]} 4. Nf3 {[%emt 0:
00:43]} Nxe4 {[%emt 0:00:08]} 5. Bd3 {[%emt 0:03:16]} Nf6 {[%emt 0:01:57]} 6.
O-O {[%emt 0:00:31]} Be7 {[%emt 0:00:08]} 7. h3 {[%emt 0:02:06]} O-O {[%emt 0:
00:58]} 8. c3 {[%emt 0:04:10]} Nbd7 {[%emt 0:03:33]} 9. Bc2 {[%emt 0:05:11]}
Re8 {[%emt 0:03:21]} 10. Re1 {[%emt 0:08:12]} Nf8 {[%emt 0:01:51]} 11. d4 {
[%emt 0:02:02]} Ng6 {[%emt 0:02:32]} 12. Nbd2 {[%emt 0:11:02]} Nf4 {[%emt 0:14:
43]} 13. Nf1 {[%emt 0:10:21]} N6h5 {[%emt 0:05:52]} 14. Ng3 {[%emt 0:16:49]}
Qd7 {[%emt 0:14:17]} 15. Nxh5 {[%emt 0:07:19]} Nxg2 {[%emt 0:05:40]} 16. Qd3 {
[%emt 0:03:20]} g6 {[%emt 0:07:18]} 17. Rxe7 {[%emt 0:00:13]} Qxe7 {[%emt 0:00:
06]} 18. Bg5 {[%emt 0:02:39]} Qe6 {[%emt 0:02:37]} 19. Nf6+ {[%emt 0:01:32]}
Kh8 {[%emt 0:01:34]} 20. d5 {[%emt 0:06:11]} Qxh3 {[%emt 0:00:55]} 21. Nxe8 {
[%emt 0:00:17]} f6 {[%emt 0:02:04]} 22. Qd4 {[%emt 0:04:26]} 1-0